bitfinex-derivatives/quotes_ETHF0:USTF0_20250501
["timestamp","ask_amount","ask_price","bid_price","bid_amount"]
[1746073042419,1.10656,1807.2,1807.1,2.4603]
[1746073042617,1.10657,1807.1,1807.0,40.8]
[1746073042915,1.10657,1807.1,1806.9,1.89328]
[1746073042916,5.95317,1807.1,1806.9,1.627]
[1746073043216,1.10676,1806.8,1806.7,0.7866]
[1746073043409,1.10676,1806.8,1806.7,19.46075288]
[1746073043721,1.10676,1806.8,1806.7,59.47415288]
[1746073043932,4.42456,1806.8,1806.7,59.47415288]
[1746073044114,1.10688,1806.6,1806.5,1.6377]
[1746073044313,1.10688,1806.6,1806.5,18.77995288]
[1746073044620,1.10688,1806.6,1806.5,59.57995288]
[1746073044916,2.79888,1806.6,1806.5,59.57995288]
[1746073047319,1.6388,1806.8,1806.5,60.68689288]
[1746073047520,1.10682,1806.7,1806.6,18.64635288]
[1746073047717,4.63482,1806.7,1806.6,9.31077965]
[1746073047913,6.26112,1806.7,1806.6,1.5992]
[1746073048109,6.27359,1806.8,1806.6,19.75317288]
[1746073048317,1.93149,1806.8,1806.7,17.04715288]
[1746073048517,1.93149,1806.8,1806.7,18.64635288]
[1746073049118,3.55779,1806.8,1806.7,1.5992]
[1746073049720,1.10688,1806.6,1806.5,40.8]
[1746073049922,2.4778,1806.7,1806.6,17.04715288]
[1746073050115,3.58462,1806.7,1806.6,17.04715288]
[1746073050315,2.4778,1806.7,1806.5,42.74584]
[1746073050517,3.58462,1806.7,1806.6,17.04715288]
[1746073050718,3.58465,1806.7,1806.6,1.10688]
[1746073051022,1.93151,1806.8,1806.7,1.10682]
[1746073051221,1.93151,1806.8,1806.7,18.70945288]
[1746073051426,1.5782,1807.0,1806.7,18.70945288]
[1746073051623,1.1067,1806.9,1806.8,19.53745288]
[1746073051811,1.10676,1806.8,1806.7,9.33557323]
[1746073052015,2.68496,1806.8,1806.7,17.04715288]
[1746073052211,1.10682,1806.7,1806.6,1.6623]
[1746073052422,1.92302,1806.7,1806.6,10.99787323]
[1746073052623,1.92302,1806.7,1806.6,18.70945288]
[1746073053722,2.74162,1806.7,1806.6,18.70945288]
[1746073054724,1.10688,1806.6,1806.5,40.8]
[1746073054919,2.80788,1806.6,1806.5,50.22957965]
[1746073055319,2.80788,1806.6,1806.5,42.518]
[1746073055623,2.80788,1806.6,1806.5,40.8]
[1746073058426,2.80788,1806.6,1806.5,42.5277]
[1746073059823,2.80788,1806.6,1806.5,50.23927965]
[1746073060016,1.10688,1806.6,1806.5,59.57485288]
[1746073060221,1.10688,1806.6,1806.5,60.38215288]
[1746073064932,1.10688,1806.6,1806.5,61.48909288]
[1746073065231,1.10688,1806.6,1806.5,60.38215288]
[1746073065530,2.77338,1806.6,1806.5,60.38215288]
[1746073066435,1.10688,1806.6,1806.5,60.38215288]
[1746073068132,1.10688,1806.6,1806.5,61.48909288]
[1746073069534,1.10688,1806.6,1806.5,60.38215288]
[1746073073233,1.10688,1806.6,1806.5,61.48909288]
[1746073073531,1.10688,1806.6,1806.5,60.38215288]
[1746073075034,1.92478,1806.6,1806.5,60.38215288]
[1746073075633,2.71488,1806.6,1806.5,60.38215288]
[1746073075821,2.71488,1806.6,1806.5,59.57485288]
[1746073076026,4.43858,1806.6,1806.5,18.77485288]
[1746073076331,4.43858,1806.6,1806.5,1.7277]
[1746073076730,1.107,1806.4,1806.3,3.2078]
[1746073077132,1.107,1806.4,1806.3,20.25495288]
[1746073077631,1.7237,1806.5,1806.3,21.36201288]
[1746073077837,1.10696,1806.5,1806.4,18.98645288]
[1746073078035,1.10696,1806.5,1806.4,20.58835288]
[1746073078231,1.10696,1806.5,1806.4,19.48135288]
[1746073078935,1.10696,1806.5,1806.4,20.58835288]
[1746073080134,1.10696,1806.5,1806.4,19.48135288]
[1746073082439,1.10696,1806.5,1806.4,20.58835288]
[1746073082639,1.10696,1806.5,1806.4,19.48135288]
[1746073082939,1.10696,1806.5,1806.4,1.6019]
[1746073083139,1.96866,1806.5,1806.4,1.6019]
[1746073083345,1.10706,1806.3,1806.2,0.8272]
[1746073083637,1.10706,1806.3,1806.2,1.6145]
[1746073084229,3.59656,1806.3,1806.2,1.6145]
[1746073086831,3.59656,1806.3,1806.2,2.72163]
[1746073087037,4.63505,1806.4,1806.2,19.76878288]
[1746073087237,4.63505,1806.4,1806.3,1.7047]
[1746073087438,7.84285,1806.4,1806.3,1.7047]
[1746073087637,9.54335,1806.4,1806.3,1.7047]
[1746073087846,1.10711,1806.3,1806.1,1.96117]
[1746073088142,0.7874,1806.2,1806.1,3.66587]
[1746073088344,1.6355,1806.2,1806.1,3.66587]
[1746073088645,1.6355,1806.2,1806.1,20.71302288]
[1746073089246,2.74263,1806.2,1806.1,20.71302288]
[1746073089447,1.6355,1806.2,1806.1,20.71302288]
[1746073089947,2.80761,1806.3,1806.2,1.10713]
[1746073090146,5.42244,1806.4,1806.3,1.10706]
[1746073090348,4.3154,1806.4,1806.3,1.10706]
[1746073090548,4.3154,1806.4,1806.3,2.71026]
[1746073091247,5.4224,1806.4,1806.3,18.65035288]
[1746073094145,0.8434,1806.5,1806.4,1.107]
[1746073094352,1.10694,1806.5,1806.4,19.52095288]
[1746073096953,3.2078,1806.6,1806.5,1.10694]
[1746073097153,12.78586073,1806.7,1806.5,18.63555288]
[1746073097346,7.35682073,1806.7,1806.6,18.15403288]
[1746073097653,8.46364073,1806.7,1806.6,18.63555288]
[1746073098153,8.46364073,1806.7,1806.6,1.5884]
[1746073098355,10.07654073,1806.7,1806.6,1.5884]
[1746073098552,1.10694,1806.5,1806.4,5.18805]
[1746073098941,1.10694,1806.5,1806.4,22.23520288]
[1746073101050,1.10694,1806.5,1806.4,20.25495288]
[1746073101355,2.69234,1806.5,1806.4,17.04715288]
[1746073102357,2.69234,1806.5,1806.4,7.71157965]
[1746073102653,1.107,1806.4,1806.3,1.5884]
[1746073103156,1.107,1806.4,1806.3,18.63555288]
[1746073103657,2.6911,1806.4,1806.3,18.63555288]
[1746073109163,2.6911,1806.4,1806.3,17.04715288]
[1746073109555,2.6911,1806.4,1806.3,18.71715288]
[1746073110763,1.107,1806.4,1806.3,18.71715288]
[1746073110956,1.107,1806.4,1806.3,19.82421288]
[1746073111664,1.107,1806.4,1806.3,18.71715288]
[1746073112564,1.107,1806.4,1806.3,19.82421288]
[1746073112959,7.35682073,1806.5,1806.4,1.107]
[1746073113263,8.46376073,1806.5,1806.4,20.29795288]
[1746073113962,1.10694,1806.5,1806.4,20.29795288]
[1746073115160,8.46375073,1806.6,1806.4,23.50575288]
[1746073115367,8.46370073,1806.6,1806.5,19.86849288]
[1746073116162,8.46370073,1806.6,1806.5,18.76155288]
[1746073116558,8.46370073,1806.6,1806.5,1.7144]
[1746073117055,10.19820073,1806.6,1806.5,1.7144]
[1746073117759,2.84138,1806.6,1806.5,1.7144]
[1746073119065,1.10703,1806.4,1806.2,5.13068]
[1746073119267,1.10703,1806.4,1806.3,1.6527]
[1746073119571,1.10703,1806.4,1806.3,19.80691288]
[1746073119766,1.10703,1806.4,1806.3,18.69985288]
[1746073120464,2.80903,1806.4,1806.3,18.69985288]
[1746073121366,2.80903,1806.4,1806.3,17.04715288]
[1746073122264,1.10706,1806.3,1806.2,1.6514]
[1746073123765,2.71656,1806.3,1806.2,1.6514]
[1746073124364,1.10706,1806.3,1806.2,1.6514]
[1746073124563,1.10706,1806.3,1806.2,18.69855288]
[1746073124867,1.10706,1806.3,1806.2,19.55115288]
[1746073125059,14.11982073,1806.5,1806.2,20.37795288]
[1746073125260,1.107,1806.4,1806.3,18.72495288]
[1746073125469,2.7229,1806.4,1806.3,18.72495288]
[1746073125664,1.107,1806.4,1806.3,18.72495288]
[1746073126369,2.7229,1806.4,1806.3,18.72495288]
[1746073127363,2.7229,1806.4,1806.3,1.6778]
[1746073128371,1.10719,1806.1,1806.0,40.8]
[1746073128574,1.10719,1806.1,1806.0,43.3293]
[1746073128766,1.10719,1806.1,1806.0,60.37645288]
[1746073129071,1.10719,1806.1,1806.0,61.48370288]
[1746073129261,1.10718,1806.2,1806.0,61.48370288]
[1746073129469,1.10718,1806.2,1806.1,9.43517965]
[1746073129663,1.10718,1806.2,1806.1,18.77075288]
[1746073131573,1.10718,1806.2,1806.1,1.7236]
[1746073131760,2.84638,1806.2,1806.1,1.7236]
[1746073135286,1.97668,1806.2,1806.1,1.7236]
[1746073137385,9.2082,1806.2,1805.7,7.84219]
[1746073137691,2.71209,1806.1,1806.0,17.04715288]
[1746073137891,2.71209,1806.1,1806.0,7.71157965]
[1746073138184,1.10725,1806.0,1805.9,1.693]
[1746073138379,3.51735,1806.0,1805.9,1.693]
[1746073138587,1.10725,1806.0,1805.9,18.74015288]
[1746073140086,1.10725,1806.0,1805.9,19.84746288]
[1746073140282,7.6033,1806.2,1805.9,19.84746288]
[1746073140488,8.71043,1806.2,1806.1,17.04715288]
[1746073140685,1.10719,1806.1,1806.0,3.63415]
[1746073140987,1.10719,1806.1,1806.0,0.8202]
[1746073141184,1.10719,1806.1,1806.0,17.86735288]
[1746073141585,1.10719,1806.1,1806.0,18.97460288]
[1746073142178,7.35682073,1806.3,1806.0,17.86735288]
[1746073142388,1.10719,1806.1,1806.0,1.92742]
[1746073142687,1.10719,1806.1,1806.0,11.26299323]
[1746073142886,1.10719,1806.1,1806.0,18.97457288]
[1746073149095,1.10719,1806.1,1806.0,17.04715288]
[1746073149396,1.10719,1806.1,1806.0,18.15440288]
[1746073149898,1.10718,1806.2,1806.1,1.10716]
[1746073150196,1.10713,1806.2,1806.1,1.93986]
[1746073150398,1.10713,1806.2,1806.1,18.98701288]
[1746073151590,1.10713,1806.2,1806.1,17.87985288]
[1746073152093,1.10713,1806.2,1806.1,17.04715288]
[1746073152299,1.10725,1806.0,1805.9,5.12477]
[1746073152496,3.56153,1806.1,1806.0,18.15440288]
[1746073155498,3.56153,1806.1,1806.0,17.04715288]
[1746073156099,1.10725,1806.0,1805.9,5.12477]
[1746073156290,3.53285,1806.0,1805.9,6.81277]
[1746073156490,3.53285,1806.0,1805.9,23.85992288]
[1746073157399,3.53285,1806.0,1805.9,4.8958]
[1746073157600,1.10737,1805.8,1805.7,42.77771]
[1746073157797,1.10737,1805.8,1805.7,41.6703]
[1746073157999,1.10737,1805.8,1805.7,58.71745288]
[1746073158301,1.97077,1805.8,1805.7,58.71745288]
[1746073158891,1.97077,1805.8,1805.7,61.54288288]
[1746073161906,1.97077,1805.8,1805.7,57.84715288]
[1746073162605,1.97077,1805.8,1805.7,58.95458288]
[1746073162798,0.8634,1805.8,1805.7,60.65188288]
[1746073164407,1.97077,1805.8,1805.7,60.65188288]
[1746073164707,3.57947,1805.8,1805.7,60.65188288]
[1746073164899,3.57947,1805.8,1805.7,59.54445288]
[1746073165504,3.57947,1805.8,1805.7,60.65188288]
[1746073165709,3.57947,1805.8,1805.7,57.84715288]
[1746073165901,1.10749,1805.6,1805.5,1.10754]
[1746073166408,1.10749,1805.6,1805.5,41.90754]
[1746073166608,2.73949,1805.6,1805.5,41.90754]
[1746073166804,2.73949,1805.6,1805.5,40.8]
[1746073167305,1.10768,1805.3,1805.2,7.38088157]
[1746073167509,7.84048,1805.3,1805.2,5.67702136]
[1746073167703,7.84048,1805.3,1805.2,46.47702136]
[1746073167903,8.28812071,1805.3,1805.2,46.47702136]
[1746073168104,6.26468,1805.3,1805.2,57.84715288]
[1746073169709,16.13406,1805.3,1804.8,32.65771789]
[1746073169909,1.10792,1804.9,1804.8,32.65771789]
[1746073170112,1.10792,1804.9,1804.8,75.04491789]
[1746073170312,1.10792,1804.9,1804.8,92.09207077]
[1746073170797,0.8423,1805.0,1804.8,92.09207077]
[1746073171002,1.10786,1805.0,1804.9,18.63435288]
[1746073173806,1.10786,1805.0,1804.9,19.48575288]
[1746073174008,1.10786,1805.0,1804.9,18.63435288]
[1746073174707,1.95316,1805.0,1804.9,18.63435288]
[1746073176213,1.95316,1805.0,1804.9,10.92277323]
[1746073176718,1.95316,1805.0,1804.9,18.63435288]
[1746073179702,1.95316,1805.0,1804.9,1.5872]
[1746073181316,1.10785,1805.1,1804.9,21.84215288]
[1746073181507,1.10785,1805.1,1805.0,17.86375288]
[1746073181814,7.18404698,1805.4,1805.1,1.10779]
[1746073182015,1.10768,1805.3,1805.2,1.7435]
[1746073182516,1.10768,1805.3,1805.2,18.79065288]
[1746073182815,3.65704698,1805.4,1805.3,1.10768]
[1746073183115,3.65704698,1805.4,1805.3,23.10613288]
[1746073183415,3.65704698,1805.4,1805.3,28.10613288]
[1746073184619,4.76466698,1805.4,1805.3,28.10613288]
[1746073184809,4.76466698,1805.4,1805.3,23.10613288]
[1746073185210,1.10762,1805.4,1805.3,23.10613288]
[1746073185818,1.10762,1805.4,1805.3,21.99845288]
[1746073186315,1.10762,1805.4,1805.3,22.84515288]
[1746073187512,1.10762,1805.4,1805.3,19.63735288]
[1746073187712,1.10762,1805.4,1805.3,22.84515288]
[1746073188711,1.10762,1805.4,1805.3,23.95283288]
[1746073191227,1.6419,1805.7,1805.3,22.84515288]
[1746073191522,1.10757,1805.5,1805.4,3.53627]
[1746073192917,1.10757,1805.5,1805.4,20.58342288]
[1746073193123,1.6419,1805.7,1805.4,20.58342288]
[1746073193421,2.74933,1805.7,1805.6,9.33557323]
[1746073193723,1.10749,1805.6,1805.5,10.40063965]
[1746073194017,1.10749,1805.6,1805.4,0.8472]
[1746073194018,4.32403,1805.7,1805.6,9.33557323]
[1746073194322,4.32403,1805.7,1805.6,17.04715288]
[1746073194520,2.74933,1805.7,1805.6,9.33557323]
[1746073194821,1.89883,1805.7,1805.6,9.33557323]
[1746073195025,1.89883,1805.7,1805.6,10.12527323]
[1746073196421,1.10743,1805.7,1805.6,11.23276323]
[1746073196616,1.10743,1805.7,1805.6,18.94434288]
[1746073197527,1.10743,1805.7,1805.6,18.94433288]
[1746073197726,1.10743,1805.7,1805.6,17.83685288]
[1746073201728,1.10743,1805.7,1805.6,18.94434288]
[1746073205539,1.10736,1805.9,1805.8,9.33557323]
[1746073206127,1.10736,1805.9,1805.8,11.07467323]
[1746073206327,1.10736,1805.9,1805.8,51.87467323]
[1746073207129,1.10736,1805.9,1805.8,52.98204323]
[1746073207329,1.10736,1805.9,1805.8,51.87467323]
[1746073209230,1.10736,1805.9,1805.8,52.98204323]
[1746073209723,1.10736,1805.9,1805.8,60.69362288]
[1746073210031,4.31508,1806.0,1805.9,1.10731]
[1746073210224,4.31508,1806.0,1805.9,20.55646288]
[1746073210727,0.8568,1806.1,1805.9,20.55646288]
[1746073210932,1.96403,1806.1,1806.0,19.73240288]
[1746073211430,1.96403,1806.1,1806.0,20.58220288]
[1746073213733,1.96403,1806.1,1806.0,23.79000288]
[1746073214724,3.66716,1806.2,1806.1,1.10719]
[1746073214931,3.65704698,1806.3,1806.2,1.10713]
[1746073214932,5.61583698,1806.3,1806.2,1.10713]
[1746073215129,3.65704698,1806.3,1806.2,19.01938288]
[1746073215433,3.65704698,1806.3,1806.2,23.96708288]
[1746073216028,3.65704698,1806.3,1806.2,64.76708288]
[1746073216933,4.48056,1806.5,1806.4,1.107]
[1746073217231,7.35682073,1806.8,1806.6,1.10688]
[1746073217436,9.20127598,1806.9,1806.8,1.10676]
[1746073217637,9.20127598,1806.9,1806.8,10.24883893]
[1746073217827,8.06352598,1806.9,1806.8,15.24883893]
[1746073218029,8.06352598,1806.9,1806.8,57.78873893]
[1746073220535,6.85759598,1806.9,1806.8,57.78873893]
[1746073220936,1.7404,1807.4,1807.3,1.10645]
[1746073221140,2.84679,1807.4,1807.3,13.79152893]
[1746073221338,1.7404,1807.4,1807.3,4.64945]
[1746073221538,1.7404,1807.4,1807.3,47.09045]
[1746073223448,1.7404,1807.4,1807.3,56.23252893]
[1746073223744,2.76722,1807.6,1807.5,1.10633]
[1746073223944,1.10632,1807.6,1807.5,10.24840893]
[1746073224245,1.10618,1807.8,1807.7,1.10621]
[1746073224446,2.76498,1807.8,1807.7,51.04828893]
[1746073224642,2.76498,1807.8,1807.7,41.90621]
[1746073224937,2.76498,1807.8,1807.7,40.8]
[1746073227049,2.76498,1807.8,1807.7,41.90621]
[1746073228046,1.6588,1807.8,1807.7,41.90621]
[1746073228244,2.76495,1807.8,1807.7,41.90621]
[1746073228543,1.6588,1807.8,1807.7,41.90621]
[1746073229049,1.6588,1807.8,1807.7,43.64241]
[1746073229251,1.6588,1807.8,1807.7,46.85021]
[1746073229550,2.76495,1807.8,1807.7,43.64241]
[1746073231044,2.76495,1807.8,1807.7,41.90621]
[1746073231650,2.76495,1807.8,1807.7,40.8]
[1746073232352,2.76495,1807.8,1807.7,41.90621]
[1746073240363,2.76495,1807.8,1807.7,40.8]
[1746073240555,2.76495,1807.8,1807.7,41.90621]
[1746073241162,2.76495,1807.8,1807.7,40.8]
[1746073246166,2.76495,1807.8,1807.7,40.8]
[1746073252366,2.76495,1807.8,1807.7,42.3771]
[1746073256172,1.10615,1807.8,1807.7,43.1904]
[1746073267079,8.37322055,1807.8,1807.7,43.1904]
[1746073269886,1.10615,1807.8,1807.7,43.1904]
[1746073273386,1.10615,1807.8,1807.7,52.33247893]
[1746073274283,1.10615,1807.8,1807.7,43.1904]
[1746073274485,1.10615,1807.8,1807.7,42.3771]
[1746073274688,1.10639,1807.4,1807.3,5.15514]
[1746073274889,1.10639,1807.4,1807.3,10.38404]
[1746073275189,1.10639,1807.4,1807.3,65.32611893]
[1746073275386,1.10639,1807.4,1807.3,60.32611893]
[1746073275775,1.10638,1807.5,1807.4,1.10636]
[1746073276281,1.10638,1807.5,1807.4,10.24843893]
[1746073278283,1.10638,1807.5,1807.4,13.45623893]
[1746073282193,1.10633,1807.5,1807.4,13.45622893]
[1746073284804,1.10631,1807.6,1807.5,1.10629]
[1746073285198,1.10631,1807.6,1807.5,10.24836893]
[1746073287002,1.10631,1807.6,1807.5,9.14207893]
[1746073287208,1.91221,1807.6,1807.5,9.14207893]
[1746073287407,2.75731,1807.6,1807.5,9.14207893]
[1746073288803,2.75731,1807.6,1807.5,10.24840893]
[1746073291205,1.651,1807.6,1807.4,3.2078]
[1746073291402,1.10639,1807.4,1807.3,40.8]
[1746073291599,1.10639,1807.4,1807.3,41.90645]
[1746073291794,1.6048,1807.7,1807.3,50.76427893]
[1746073291993,2.71104,1807.7,1807.6,10.24834893]
[1746073292305,2.71104,1807.7,1807.6,9.14207893]
[1746073292506,2.71104,1807.7,1807.6,10.24834893]
[1746073292702,2.71104,1807.7,1807.6,9.14207893]
[1746073296307,10.05622999,1807.7,1807.6,9.14207893]
[1746073296506,10.05622999,1807.7,1807.6,10.83357893]
[1746073297007,10.05622999,1807.7,1807.6,11.93984893]
[1746073297807,10.05622999,1807.7,1807.6,10.83357893]
[1746073298008,10.05622999,1807.7,1807.6,11.93984893]
[1746073298507,10.05622999,1807.7,1807.6,10.83357893]
[1746073299003,10.05622999,1807.7,1807.6,11.93984893]
[1746073299306,2.71104,1807.7,1807.6,11.93984893]
[1746073300012,1.6048,1807.7,1807.6,11.93984893]
[1746073300307,7.34518999,1807.9,1807.8,1.10615]
[1746073300606,7.34518999,1807.9,1807.8,13.45602893]
[1746073301107,7.34518999,1807.9,1807.8,15.97772893]
[1746073301411,7.34518999,1807.9,1807.8,20.97772893]
[1746073302710,1.7383,1808.1,1808.0,1.10602]
[1746073303008,10.08616999,1808.3,1808.1,1.10592]
[1746073303212,11.82446999,1808.3,1808.2,10.86347893]
[1746073303403,11.82446999,1808.3,1808.2,1.7214]
[1746073304508,8.45106999,1808.3,1808.2,10.86347893]
[1746073304900,8.45106999,1808.3,1808.2,51.66347893]
[1746073305411,10.13786999,1808.3,1808.2,51.66347893]
[1746073306409,2.79268,1808.3,1808.2,51.66347893]
[1746073308609,2.79268,1808.3,1808.2,52.76937893]
[1746073308814,2.79268,1808.3,1808.2,51.66347893]
[1746073312315,2.79268,1808.3,1808.2,49.94207893]
[1746073314920,1.10608,1807.9,1807.8,5.2193]
[1746073315216,1.10608,1807.9,1807.8,14.36137893]
[1746073315418,1.10608,1807.9,1807.8,55.16137893]
[1746073316020,2.71008,1807.9,1807.8,55.16137893]
[1746073316818,2.71008,1807.9,1807.8,56.26752893]
[1746073317119,1.10608,1807.9,1807.8,56.26752893]
[1746073319020,1.10608,1807.9,1807.8,55.16137893]
[1746073319222,1.10608,1807.9,1807.8,14.36137893]
[1746073319624,2.81608,1807.9,1807.8,12.66507893]
[1746073320814,2.81608,1807.9,1807.8,14.27487893]
[1746073322824,2.74897,1808.0,1807.9,1.10608]
[1746073323025,2.74897,1808.0,1807.9,10.72167893]
[1746073323333,2.74897,1808.0,1807.9,11.55807893]
[1746073325014,2.74897,1808.0,1807.8,3.523]
[1746073325015,1.10608,1807.9,1807.8,3.523]
[1746073325218,2.80378,1807.9,1807.8,12.66507893]
[1746073328621,2.80378,1807.9,1807.8,3.523]
[1746073329626,1.10615,1807.8,1807.7,46.7931]
[1746073329827,1.10615,1807.8,1807.7,55.93517893]
[1746073332130,2.80383,1807.9,1807.8,1.10615]
[1746073332322,1.10613,1807.9,1807.8,11.93932893]
[1746073332523,1.10613,1807.9,1807.8,2.79725]
[1746073333629,1.10613,1807.9,1807.8,11.93932893]
[1746073334932,2.74897,1808.0,1807.8,11.93932893]
[1746073335131,2.74897,1808.0,1807.7,44.0078]
[1746073335132,2.74897,1808.0,1807.9,12.69155893]
[1746073335334,2.74897,1808.0,1807.9,11.58547893]
[1746073335531,2.74897,1808.0,1807.9,10.75707893]
[1746073335731,1.10615,1807.8,1807.7,45.94236]
[1746073335929,1.10615,1807.8,1807.7,56.69943893]
[1746073337434,1.10615,1807.8,1807.7,55.87103893]
[1746073342034,2.84301,1807.9,1807.8,1.10615]
[1746073342435,1.10611,1807.9,1807.8,12.74182893]
[1746073342832,1.89837,1808.0,1807.9,1.10608]
[1746073343032,1.89837,1808.0,1807.9,12.72045893]
[1746073343437,1.10607,1808.0,1807.9,12.72045893]
[1746073345238,1.10607,1808.0,1807.9,11.61437893]
[1746073345432,1.10607,1808.0,1807.9,10.79397893]
[1746073345635,2.72617,1808.0,1807.9,10.79397893]
[1746073346338,2.72617,1808.0,1807.7,45.95465]
[1746073346544,1.10615,1807.8,1807.7,44.0078]
[1746073347145,2.83645,1807.8,1807.7,44.0078]
[1746073351350,2.83645,1807.8,1807.7,45.5897]
[1746073353848,2.83645,1807.8,1807.7,40.8]
[1746073354048,2.83645,1807.8,1807.5,4.9523]
[1746073354049,1.10627,1807.6,1807.5,4.9523]
[1746073354547,1.10627,1807.6,1807.5,54.89437893]
[1746073354749,2.78527,1807.6,1807.5,54.89437893]
[1746073360651,13.31821999,1807.9,1807.5,54.89437893]
[1746073360854,1.10627,1807.7,1807.6,11.56297893]
[1746073361054,1.10627,1807.7,1807.6,11.08444893]
[1746073361549,1.10627,1807.7,1807.6,51.88444893]
[1746073362353,1.10619,1807.8,1807.7,1.10619]
[1746073362549,1.10619,1807.8,1807.7,11.08576893]
[1746073362756,1.10619,1807.8,1807.7,0.8375]
[1746073367753,1.10619,1807.8,1807.7,1.94371]
[1746073367955,1.10619,1807.8,1807.7,0.8375]
[1746073368955,1.10619,1807.8,1807.7,1.94371]
[1746073369456,1.10619,1807.8,1807.7,0.8375]
[1746073369655,1.10619,1807.8,1807.7,1.94371]
[1746073369958,1.10619,1807.8,1807.7,11.08578893]
[1746073370149,1.10613,1807.9,1807.8,1.10612]
[1746073370550,1.10613,1807.9,1807.8,10.24819893]
[1746073371058,1.10613,1807.9,1807.8,9.14207893]
[1746073372162,1.10615,1807.8,1807.7,0.8375]
[1746073372361,1.95005,1807.8,1807.7,0.8375]
[1746073372660,1.95005,1807.8,1807.7,9.97957893]
[1746073372855,1.95005,1807.8,1807.7,50.77957893]
[1746073376261,1.95005,1807.8,1807.7,52.40057893]
[1746073381866,1.95005,1807.8,1807.7,43.2585]
[1746073382069,1.95005,1807.8,1807.7,42.421]
[1746073384470,3.60931,1807.8,1807.4,3.2078]
[1746073384669,3.57141,1807.7,1807.6,9.14207893]
[1746073384970,3.57141,1807.7,1807.6,49.94207893]
[1746073385171,3.57141,1807.7,1807.6,40.8]
[1746073387673,1.10627,1807.6,1807.5,2.79962]
[1746073387872,1.10633,1807.5,1807.4,5.17334]
[1746073388272,1.10633,1807.5,1807.4,55.11541893]
[1746073388674,0.8478,1807.7,1807.4,54.00907893]
[1746073388874,1.10625,1807.7,1807.6,10.24832893]
[1746073390479,1.10625,1807.7,1807.6,9.14207893]
[1746073391975,1.93815,1807.7,1807.6,9.14207893]
[1746073393980,1.1062,1807.8,1807.7,1.1062]
[1746073394278,1.1062,1807.8,1807.7,9.95627893]
[1746073394678,11.65911999,1807.9,1807.7,50.75627893]
[1746073394877,11.65911999,1807.9,1807.8,9.99997893]
[1746073395076,11.65911999,1807.9,1807.8,11.10612893]
[1746073395279,11.65911999,1807.9,1807.8,9.99997893]
[1746073395581,11.65911999,1807.9,1807.8,11.10612893]
[1746073396182,11.65911999,1807.9,1807.8,9.99997893]
[1746073396675,1.10615,1807.8,1807.7,42.72035]
[1746073397183,1.10615,1807.8,1807.7,51.86242893]
[1746073398675,7.34518999,1808.0,1807.7,50.75627893]
[1746073398980,7.34518999,1808.0,1807.9,13.45595893]
[1746073402988,7.34518999,1808.0,1807.9,16.97795893]
[1746073403587,1.10593,1808.2,1808.1,1.10596]
[1746073403886,1.10593,1808.2,1808.1,10.24803893]
[1746073404085,1.10593,1808.2,1808.1,1.10596]
[1746073404984,3.9946,1808.3,1808.2,1.1059]
[1746073405186,7.34518999,1808.4,1808.3,1.10584]
[1746073405488,7.34518999,1808.4,1808.3,10.24791893]
[1746073405680,7.34518999,1808.4,1808.3,11.05151893]
[1746073406081,7.34518999,1808.4,1808.3,12.63841893]
[1746073406378,7.34518999,1808.6,1808.5,1.10572]
[1746073406579,7.34518999,1808.6,1808.5,10.24779893]
[1746073406975,7.34518999,1808.6,1808.5,11.83469893]
[1746073409994,10.18053773,1808.7,1808.6,1.1056]
[1746073409995,1.1056,1808.7,1808.6,1.1056]
[1746073410292,1.1056,1808.7,1808.6,11.07607893]
[1746073410495,1.1056,1808.7,1808.6,12.68747893]
[1746073411295,2.7453,1808.7,1808.6,12.68747893]
[1746073413693,2.7453,1808.7,1808.6,9.14207893]
[1746073413898,1.10572,1808.5,1808.4,1.10573]
[1746073414095,1.10572,1808.5,1808.4,13.45560893]
[1746073414500,3.54382,1808.5,1808.4,15.17660893]
[1746073414889,0.8302,1808.5,1808.4,15.17660893]
[1746073415096,0.8633,1808.6,1808.5,1.10572]
[1746073415400,1.6079,1808.7,1808.6,1.10566]
[1746073415593,1.6079,1808.7,1808.6,10.24773893]
[1746073415793,1.6079,1808.7,1808.6,2.82666]
[1746073416898,2.7135,1808.7,1808.6,2.82666]
[1746073419405,1.6079,1808.7,1808.6,2.82666]
[1746073419606,2.7135,1808.7,1808.6,2.82666]
[1746073419807,1.6079,1808.7,1808.6,3.64836]
[1746073420102,1.93578,1808.8,1808.7,1.1056]
[1746073420403,3.59068,1808.8,1808.7,2.7484]
[1746073420707,3.59068,1808.8,1808.7,1.6428]
[1746073420892,1.1056,1808.7,1808.6,1.10561]
[1746073421094,2.7605,1808.7,1808.6,1.10561]
[1746073421298,2.7605,1808.7,1808.6,10.24768893]
[1746073421498,2.7605,1808.7,1808.6,11.89048893]
[1746073427307,2.7605,1808.7,1808.6,9.14207893]
[1746073428510,2.7605,1808.7,1808.6,10.24773893]
[1746073429915,1.93578,1808.8,1808.7,1.1056]
[1746073430209,3.65878,1808.8,1808.7,11.92287893]
[1746073430510,3.65878,1808.8,1808.7,2.7808]
[1746073431811,1.93578,1808.8,1808.7,2.7808]
[1746073432107,3.65628,1808.8,1808.7,2.7808]
[1746073432309,3.65628,1808.8,1808.7,11.92287893]
[1746073433703,1.96883,1808.9,1808.8,1.10553]
[1746073433908,1.96883,1808.9,1808.8,11.82770893]
[1746073434109,1.96883,1808.9,1808.8,2.68563]
[1746073434511,3.68933,1808.9,1808.8,1.5801]
[1746073436310,7.30572319,1809.2,1809.1,1.10535]
[1746073436510,7.30572319,1809.2,1809.1,16.97422893]
[1746073436720,7.30572319,1809.2,1809.1,57.77422893]
[1746073441122,1.6965,1809.4,1809.3,1.10523]
[1746073441422,1.7298,1809.5,1809.4,1.10517]
[1746073441609,1.7298,1809.5,1809.3,1.10518]
[1746073441816,1.713,1809.4,1809.3,2.76248]
[1746073443512,1.713,1809.4,1809.3,11.90455893]
[1746073446220,2.81817,1809.4,1809.3,11.90455893]